bitfinex-derivatives/quotes_SOLF0:USTF0_20260118
["timestamp","ask_amount","ask_price","bid_price","bid_amount"]
[1768779008454,1.8255086,139.81,139.61,142.78]
[1768779008659,1.8255086,139.8,139.69,3.25591087]
[1768779008855,100.2024,139.77,139.64,3.25591087]
[1768779009061,100.2274,139.74,139.64,3.25591087]
[1768779009369,100.275,139.67,139.56,3.25591087]
[1768779009559,100.2816,139.66,139.56,3.25591087]
[1768779009863,100.275,139.67,139.56,3.25591087]
[1768779010068,100.2972,139.64,139.56,3.25591087]
[1768779010273,100.3282,139.6,139.45,19.62392082]
[1768779010464,100.3467,139.57,139.45,24.31063039]
[1768779010657,100.3467,139.57,139.45,19.62392082]
[1768779010862,105.01490957,139.6,139.45,19.62392082]
[1768779011059,100.2882,139.65,139.45,48.54392082]
[1768779011261,100.2774,139.67,139.46,57.86]
[1768779011460,4.68670957,139.64,139.5,0.05240152]
[1768779011760,100.3109,139.62,139.45,19.62392082]
[1768779011958,4.68670957,139.6,139.45,19.62392082]
[1768779012158,4.68670957,139.65,139.47,4.68670957]
[1768779012367,104.95040957,139.69,139.51,3.25591087]
[1768779012571,4.68670957,139.66,139.51,3.25591087]
[1768779012971,104.97140957,139.66,139.51,3.25591087]
[1768779013165,4.68670957,139.63,139.51,3.25591087]
[1768779013366,100.3038,139.63,139.51,3.25591087]
[1768779013670,4.68670957,139.6,139.51,3.25591087]
[1768779013975,100.2813,139.66,139.51,3.25591087]
[1768779014160,4.68670957,139.66,139.51,3.25591087]
[1768779014363,104.96840957,139.66,139.51,3.25591087]
[1768779014568,4.68670957,139.66,139.51,3.25591087]
[1768779014767,100.2466,139.71,139.54,3.25591087]
[1768779014966,0.05210302,139.6,139.54,3.25591087]
[1768779015168,4.68670957,139.7,139.54,3.25591087]
[1768779015568,4.68670957,139.7,139.53,4.68670957]
[1768779015569,100.2102,139.76,139.62,3.25591087]
[1768779015871,100.1974,139.78,139.62,3.25591087]
[1768779015872,4.68670957,139.78,139.62,3.25591087]
[1768779016175,100.1665,139.82,139.63,3.25591087]
[1768779016476,104.84930957,139.83,139.66,3.25591087]
[1768779016661,4.68670957,139.8,139.66,3.25591087]
[1768779017073,0.04858357,139.74,139.71,0.04544361]
[1768779017277,4.68670957,139.8,139.66,3.25591087]
[1768779017572,104.88990957,139.77,139.66,3.25591087]
[1768779017873,4.68670957,139.71,139.6,3.25591087]
[1768779018175,4.68670957,139.74,139.6,3.25591087]
[1768779018676,4.68670957,139.74,139.66,0.05294125]
[1768779018677,0.04566609,139.68,139.66,0.05294125]
[1768779018866,0.04566609,139.68,139.66,0.00185017]
[1768779019061,0.04566609,139.68,139.61,3.25591087]
[1768779019062,4.73237566,139.68,139.61,3.25591087]
[1768779019269,4.68670957,139.68,139.61,3.25591087]
[1768779020473,4.68670957,139.71,139.61,3.25591087]
[1768779020672,4.68670957,139.74,139.61,3.25591087]
[1768779020868,100.2386,139.72,139.64,3.25591087]
[1768779021075,100.2386,139.72,139.63,0.04822335]
[1768779021076,104.93270957,139.71,139.63,0.04822335]
[1768779021275,100.2766,139.67,139.55,3.25591087]
[1768779021475,4.68670957,139.56,139.47,280.757]
[1768779021678,4.68670957,139.53,139.45,19.62392082]
[1768779022070,105.06160957,139.53,139.45,19.62392082]
[1768779022270,200.636,139.61,139.48,0.04736536]
[1768779022471,105.02900957,139.58,139.48,0.04736536]
[1768779022671,105.05020957,139.55,139.48,0.04736536]
[1768779022872,105.05020957,139.55,139.46,3.25591087]
[1768779023168,4.68670957,139.52,139.5,0.04744456]
[1768779023373,4.68670957,139.52,139.45,19.62392082]
[1768779023572,4.73513101,139.52,139.45,19.62392082]
[1768779023980,0.04842144,139.52,139.45,19.62392082]
[1768779024380,4.73513101,139.52,139.45,19.62392082]
[1768779024973,4.68670957,139.51,139.45,2.082e-05]
[1768779025173,0.04842144,139.52,139.45,2.082e-05]
[1768779025373,0.04842144,139.52,139.45,3.28559156]
[1768779026475,100.3173,139.61,139.45,3.28559156]
[1768779026476,100.3101,139.62,139.45,3.28559156]
[1768779026678,100.3032,139.63,139.45,3.28559156]
[1768779026985,4.68670957,139.63,139.47,3.33934802]
[1768779027180,100.3103,139.62,139.47,3.33934802]
[1768779027484,100.3324,139.59,139.47,3.28557074]
[1768779027675,105.01210957,139.6,139.47,3.28557074]
[1768779027876,4.68670957,139.6,139.53,0.04690951]
[1768779028184,100.3318,139.59,139.53,0.04690951]
[1768779028387,111.46110957,139.6,139.53,0.04690951]
[1768779028682,105.03320957,139.57,139.47,3.28557074]
[1768779028884,100.3535,139.56,139.47,3.28557074]
[1768779029088,100.375,139.53,139.45,2.082e-05]
[1768779029385,4.68670957,139.51,139.45,2.082e-05]
[1768779029685,4.68670957,139.51,139.38,3.28557074]
[1768779029882,105.07700957,139.51,139.38,3.28557074]
[1768779030082,0.04667741,139.49,139.38,3.28557074]
[1768779030586,105.07710957,139.51,139.38,3.28557074]
[1768779030979,0.05029244,139.45,139.38,3.28557074]
[1768779031181,4.68670957,139.51,139.38,3.28557074]
[1768779031377,4.68670957,139.5,139.43,0.05116374]
[1768779031582,4.68670957,139.55,139.43,3.33673448]
[1768779031978,100.3212,139.61,139.44,3.28557074]
[1768779031979,4.68670957,139.61,139.44,3.28557074]
[1768779032287,4.68670957,139.63,139.47,3.28557074]
[1768779032683,4.68670957,139.63,139.51,0.04602248]
[1768779032883,4.68670957,139.63,139.51,3.33159322]
[1768779033388,4.68670957,139.6,139.51,3.28557074]
[1768779033589,4.68670957,139.6,139.56,0.05055739]
[1768779033888,100.3504,139.56,139.41,284.04257074]
[1768779034186,4.68670957,139.52,139.41,3.28557074]
[1768779034690,100.3095,139.62,139.42,3.28557074]
[1768779034888,4.68670957,139.59,139.43,3.28557074]
[1768779035777,4.68670957,139.56,139.46,3.28557074]
[1768779036081,100.2752,139.67,139.46,3.28557074]
[1768779036281,6.446,139.67,139.46,3.28557074]
[1768779036492,4.68670957,139.61,139.46,3.28557074]
[1768779036690,4.68670957,139.64,139.55,0.0521148]
[1768779036989,4.68670957,139.64,139.51,3.28557074]
[1768779037585,4.68670957,139.61,139.51,3.28557074]
[1768779037995,4.68670957,139.64,139.51,3.28557074]
[1768779038695,100.2672,139.68,139.51,3.28557074]
[1768779038892,4.68670957,139.64,139.51,3.28557074]
[1768779039997,0.04943177,139.59,139.51,3.28557074]
[1768779041593,0.04943177,139.59,139.47,3.33160883]
[1768779041790,0.04943177,139.59,139.41,280.757]
[1768779041791,4.68670957,139.55,139.41,3.33160883]
[1768779042388,4.68670957,139.52,139.41,3.33160883]
[1768779042693,0.05147027,139.49,139.41,3.33160883]
[1768779043592,4.68670957,139.55,139.44,0.050375]
[1768779044100,4.68670957,139.52,139.41,3.33160883]
[1768779045094,0.04714758,139.48,139.45,0.05178708]
[1768779045292,4.68670957,139.55,139.45,0.05178708]
[1768779045998,4.68670957,139.55,139.41,3.33160883]
[1768779046700,4.68670957,139.55,139.47,0.04748771]
[1768779047595,4.68670957,139.52,139.47,0.04748771]
[1768779047795,4.68670957,139.52,139.41,3.33160883]
[1768779049198,0.04793325,139.48,139.45,0.05325804]
[1768779049900,4.68670957,139.52,139.45,0.05325804]
[1768779050104,4.68670957,139.55,139.45,0.05325804]
[1768779050601,6.4514,139.56,139.41,3.33160883]
[1768779050899,4.68670957,139.57,139.42,3.33160883]
[1768779051198,4.68670957,139.57,139.44,3.33160883]
[1768779051401,4.68670957,139.57,139.47,0.0478259]
[1768779051800,4.68670957,139.6,139.47,3.37943473]
[1768779051994,6.4491,139.61,139.47,3.33160883]
[1768779052193,4.68670957,139.62,139.47,3.33160883]
[1768779052498,4.68670957,139.63,139.52,0.05105822]
[1768779052893,11.13280957,139.67,139.52,3.27832499]
[1768779053090,11.13280957,139.67,139.53,3.22726677]
[1768779053402,4.68670957,139.68,139.53,3.22726677]
[1768779053599,4.68670957,139.68,139.58,0.05172194]
[1768779053799,4.68670957,139.7,139.58,3.27898871]
[1768779053997,4.68670957,139.73,139.59,3.22726677]
[1768779054695,4.68670957,139.7,139.59,3.22726677]
[1768779055304,4.68670957,139.72,139.59,3.22726677]
[1768779055797,100.1881,139.79,139.61,3.22726677]
[1768779056001,4.68670957,139.76,139.61,3.22726677]
[1768779056905,4.68636618,139.77,139.63,3.22726677]
[1768779057092,100.1708,139.82,139.63,3.22726677]
[1768779057297,4.68636618,139.79,139.66,3.22726677]
[1768779058707,4.68636618,139.76,139.62,3.22726677]
[1768779058900,4.68636618,139.73,139.62,3.22726677]
[1768779059096,4.68636618,139.7,139.58,3.22726677]
[1768779059407,4.68636618,139.74,139.58,3.22726677]
[1768779059606,4.68636618,139.75,139.66,0.04985728]
[1768779060101,4.68636618,139.75,139.63,3.22726677]
[1768779060407,4.68636618,139.72,139.63,3.22726677]
[1768779060600,4.68636618,139.72,139.57,3.22726677]
[1768779061308,4.68636618,139.75,139.63,0.0463184]
[1768779061799,4.68636618,139.75,139.63,3.22726677]
[1768779062002,100.157,139.83,139.63,3.22726677]
[1768779062207,100.157,139.83,139.68,0.04667592]
[1768779062208,4.68636618,139.81,139.68,0.04667592]
[1768779062397,4.68636618,139.78,139.68,0.04667592]
[1768779062602,4.68636618,139.78,139.66,3.19201677]
[1768779062906,4.68636618,139.75,139.58,285.44336618]
[1768779063107,4.68636618,139.75,139.58,4.68636618]
[1768779063509,104.88086618,139.78,139.61,4.68636618]
[1768779063510,0.05091774,139.73,139.61,4.68636618]
[1768779063701,0.05091774,139.73,139.6,4.68636618]
[1768779063905,11.12766618,139.78,139.6,4.68636618]
[1768779064208,4.68636618,139.81,139.67,3.22726677]
[1768779064705,4.68636618,139.78,139.67,3.22726677]
[1768779065099,4.68636618,139.78,139.73,0.04834662]
[1768779065900,4.68636618,139.78,139.67,3.22726677]
[1768779066296,4.68636618,139.81,139.67,3.22726677]
[1768779067301,4.68636618,139.81,139.69,3.22726677]
[1768779067701,4.68636618,139.81,139.73,0.05297497]
[1768779068204,19.62392082,139.87,139.73,0.05297497]
[1768779068407,4.68636618,139.86,139.73,3.28024174]
[1768779068803,4.68636618,139.86,139.73,3.22726677]
[1768779069305,4.68636618,139.86,139.78,0.04536898]
[1768779070005,19.62392082,139.87,139.78,0.04536898]
[1768779070598,19.62392082,139.87,139.78,3.22726677]
[1768779071008,19.62392082,139.87,139.81,0.04763013]
[1768779077508,19.62392082,139.87,139.81,3.2748969]
[1768779079204,4.68636618,139.93,139.81,3.2748969]
[1768779079514,6.4327,139.96,139.81,3.2748969]
[1768779079711,4.68636618,139.93,139.81,3.22726677]
[1768779080117,6.4318,139.98,139.87,0.05065324]
[1768779080118,4.68636618,139.94,139.87,0.05065324]
[1768779080820,4.68636618,139.94,139.84,3.22726677]
[1768779081021,4.68636618,139.97,139.84,3.22726677]
[1768779081320,4.68636618,139.97,139.89,0.05185346]
[1768779082610,4.68636618,140.0,139.89,3.40474359]
[1768779083115,4.68636618,140.0,139.89,3.35289013]
[1768779083622,4.68636618,140.03,139.93,0.05260388]
[1768779084018,4.68636618,140.05,139.93,3.40549401]
[1768779084226,4.68636618,140.06,139.93,3.35289013]
[1768779084713,4.68636618,140.03,139.98,0.0475411]
[1768779084917,4.68636618,140.05,139.98,0.0475411]
[1768779085315,4.68636618,140.05,139.93,3.35289013]
[1768779085516,99.9433,140.13,139.93,3.35289013]
[1768779085716,4.68636618,140.07,140.0,0.04720233]
[1768779086322,4.68636618,140.07,139.96,3.35289013]
[1768779086625,4.68636618,140.07,140.02,0.05231888]
[1768779086824,6.4259,140.11,140.02,0.05231888]
[1768779087027,4.68636618,140.09,140.02,0.05231888]
[1768779087427,4.68636618,140.09,139.96,3.35289013]
[1768779087827,4.68636618,140.06,139.96,3.35289013]
[1768779089226,0.04564922,140.02,139.96,3.35289013]
[1768779089422,6.4259,140.11,139.96,3.35289013]
[1768779089617,4.68636618,140.07,139.96,3.35289013]
[1768779089822,4.68636618,140.03,139.92,3.35289013]
[1768779090232,99.9837,140.08,139.92,3.35289013]
[1768779090432,4.68636618,140.03,139.92,3.35289013]
[1768779090624,4.68636618,140.0,139.88,3.35289013]
[1768779090935,100.0021,140.05,139.88,3.35289013]
[1768779090936,4.68636618,139.97,139.88,3.35289013]
[1768779091225,4.68636618,139.98,139.88,3.35289013]
[1768779092626,100.0117,140.04,139.88,3.35289013]
[1768779092826,4.68636618,139.98,139.88,3.35289013]
[1768779096335,6.4297,140.03,139.88,3.35289013]
[1768779096533,4.68636618,140.0,139.88,3.35289013]
[1768779098523,99.9883,140.07,139.9,3.18311629]
[1768779098524,4.68636618,140.04,139.9,3.18311629]
[1768779098831,4.68636618,140.04,139.93,0.04548456]
[1768779099439,4.68636618,140.04,139.9,3.18311629]
[1768779100030,4.68636618,140.03,139.9,3.18311629]
[1768779100624,4.68636618,140.03,139.91,3.18311629]
[1768779101128,4.68636618,140.07,139.94,3.18311629]
[1768779101328,99.9163,140.17,139.97,3.18311629]
[1768779101530,4.68636618,140.11,139.97,3.18311629]
[1768779102041,4.68636618,140.2,140.0,3.18311629]
[1768779102236,4.68636618,140.14,140.0,3.18311629]
[1768779102536,4.68636618,140.16,140.03,3.18311629]
[1768779103331,4.68636618,140.17,140.03,3.18311629]
[1768779104133,4.68636618,140.14,140.03,3.18311629]
[1768779108639,4.68636618,140.15,140.03,3.18311629]
[1768779109040,4.68636618,140.17,140.03,3.18311629]
[1768779109338,99.8323,140.29,140.05,3.18311629]
[1768779109339,4.68636618,140.2,140.05,3.18311629]
[1768779109538,368.8723,140.29,140.05,3.18311629]
[1768779109736,4.68636618,140.2,140.05,3.18311629]
[1768779110848,4.68636618,140.17,140.05,3.18311629]
[1768779111339,4.68636618,140.17,140.1,0.04613195]
[1768779112643,6.4216,140.2,140.1,0.04613195]
[1768779112843,4.68636618,140.17,140.1,0.04613195]
[1768779113046,99.8602,140.25,140.1,0.04613195]
[1768779113047,24.12706608,140.18,140.1,0.04613195]
[1768779114449,4.73666232,140.15,140.01,5.22105605]
[1768779115151,4.68636618,140.15,140.01,5.22105605]
[1768779115452,24.12706608,140.18,140.03,5.22105605]
[1768779115750,19.4406999,140.18,140.05,5.22105605]
[1768779115952,19.4406999,140.18,140.06,5.22105605]
[1768779116250,19.4406999,140.18,140.09,5.2722655]
[1768779116850,19.4406999,140.18,140.09,5.22105605]
[1768779117353,19.4406999,140.18,140.12,0.04803141]
[1768779118251,19.4406999,140.18,140.12,5.26908746]
[1768779118451,4.68636618,140.22,140.12,5.26908746]
[1768779118650,4.68636618,140.25,140.12,5.26908746]
[1768779118848,4.654269,140.25,140.12,5.26908746]
[1768779119048,4.654269,140.25,140.12,5.22105605]
[1768779119246,0.04620046,140.2,140.12,5.22105605]
[1768779119458,0.04620046,140.2,140.17,0.0471147]
[1768779119753,0.04620046,140.2,140.12,5.22105605]
[1768779119951,4.654269,140.19,140.08,5.22105605]
[1768779120357,4.654269,140.19,140.05,5.22105605]
[1768779121055,0.0460903,140.13,140.05,5.22105605]
[1768779122052,0.0460903,140.13,140.01,30.62]
[1768779122053,4.7003593,140.13,140.01,5.22105605]
[1768779122647,4.654269,140.1,139.96,5.22105605]
[1768779123152,0.05435295,140.08,139.96,5.22105605]
[1768779123556,4.654269,140.07,139.96,5.22105605]
[1768779124052,0.04546662,140.03,139.96,5.22105605]
[1768779125859,0.04546662,140.03,139.92,5.22105605]
[1768779126356,4.654269,140.04,139.92,5.22105605]
[1768779126750,0.05005425,139.99,139.92,5.22105605]
[1768779127855,0.05005425,139.99,139.88,5.22105605]
[1768779128459,4.654269,140.01,139.88,5.22105605]
[1768779128758,0.04832391,139.95,139.88,5.22105605]
[1768779129159,0.04832391,139.95,139.88,9.87532505]
[1768779129355,4.654269,140.06,139.92,5.22105605]
[1768779129956,4.654269,140.1,139.95,5.22105605]
[1768779130358,99.9018,140.19,139.95,5.22105605]
[1768779130558,4.654269,140.12,139.98,5.22105605]
[1768779131358,4.654269,140.09,139.94,9.87532505]
[1768779131656,4.654269,140.09,139.94,5.22105605]
[1768779132059,0.04933106,140.03,139.94,5.22105605]
[1768779132657,4.654269,140.07,139.94,5.22105605]
[1768779133056,0.04591919,140.0,139.94,5.22105605]
[1768779133966,4.654269,140.07,139.96,0.05115]
[1768779134665,4.654269,140.07,139.94,5.22105605]
[1768779135170,11.080769,140.1,139.99,0.05462427]
[1768779135469,4.654269,140.05,139.99,0.05462427]
[1768779135670,4.654269,140.02,139.88,5.22105605]
[1768779136869,4.654269,140.03,139.88,5.22105605]
[1768779137058,0.05170678,139.96,139.88,5.22105605]
[1768779137259,4.654269,140.03,139.88,5.22105605]
[1768779137467,99.9812,140.08,139.94,0.05103075]
[1768779137670,4.654269,140.03,139.94,0.05103075]
[1768779138171,4.654269,140.03,139.88,5.22105605]
[1768779138467,4.654269,140.0,139.88,5.22105605]
[1768779138771,4.654269,140.0,139.86,5.22105605]
[1768779139066,4.654269,140.0,139.82,5.22105605]
[1768779139067,0.04679836,139.95,139.82,5.22105605]
[1768779139370,4.654269,139.94,139.82,5.22105605]
[1768779140374,0.04536937,139.89,139.82,5.22105605]
[1768779140764,0.04536937,139.89,139.78,5.22105605]
[1768779141260,4.654269,139.91,139.78,5.22105605]
[1768779141765,0.04804845,139.85,139.78,5.22105605]
[1768779142272,0.04804845,139.85,139.76,4.654269]
[1768779142463,0.04804845,139.85,139.74,5.22105605]
[1768779142972,4.654269,139.91,139.74,5.22105605]
[1768779143669,4.654269,139.91,139.81,0.04815074]
[1768779144269,16.654269,139.94,139.79,8.40612705]
[1768779144460,4.654269,139.94,139.79,8.40612705]
[1768779144767,100.0528,139.98,139.78,8.40612705]
[1768779144969,4.654269,139.91,139.78,8.40612705]
[1768779145266,4.654269,139.97,139.83,8.40612705]
[1768779145665,4.654269,139.94,139.79,8.40612705]
[1768779147681,4.654269,139.96,139.81,8.40612705]
[1768779147870,4.654269,139.96,139.84,8.40612705]
[1768779148370,4.654269,139.99,139.84,8.40612705]
[1768779150373,6.4299,140.02,139.8,26.034269]
[1768779150374,16.654269,140.02,139.87,8.40612705]
[1768779151069,12.0,140.02,139.87,8.40612705]
[1768779151266,249.00960991,140.05,139.87,8.40612705]
[1768779151267,4.654269,140.03,139.87,8.40612705]
[1768779151670,4.654269,140.03,139.8,26.034269]
[1768779151671,4.654269,140.02,139.9,8.40612705]
[1768779151874,4.654269,140.02,139.87,8.40612705]
[1768779152380,11.084469,140.02,139.87,8.40612705]
[1768779153278,11.084469,140.02,139.93,0.04521267]
[1768779153877,11.084469,140.02,139.87,8.40612705]
[1768779155275,4.654269,140.02,139.87,8.40612705]
[1768779155782,4.654269,140.02,139.9,8.40612705]
[1768779155979,253.66387891,140.05,139.9,8.40612705]
[1768779156474,253.66387891,140.05,139.82,87.16]
[1768779156475,4.654269,140.08,139.93,8.40612705]
[1768779156674,99.9492,140.13,139.93,8.40612705]
[1768779156981,4.654269,140.08,139.96,8.40612705]
[1768779157281,4.654269,140.11,139.96,8.40612705]
[1768779157476,4.654269,140.11,139.97,8.40612705]
[1768779158477,4.654269,140.11,140.03,0.04588752]
[1768779158885,4.654269,140.14,140.03,0.04588752]
[1768779159486,4.654269,140.14,140.0,10.1258089]
[1768779160171,4.654269,140.12,140.0,10.1258089]
[1768779160572,267.14,140.2,140.0,10.1258089]
[1768779160781,4.654269,140.21,140.06,10.1258089]
[1768779161287,4.654269,140.21,140.09,10.1258089]
[1768779161678,11.075769,140.21,140.08,6.4269]
[1768779162277,4.654269,140.18,140.08,6.4269]
[1768779162478,4.654269,140.18,140.06,6.4279]
[1768779162888,4.654269,140.18,140.06,106.4178]
[1768779163188,4.654269,140.18,140.06,6.4279]
[1768779163386,4.654269,140.15,140.06,6.4279]
[1768779164589,4.654269,140.2,140.09,99.967]
[1768779165988,4.654269,140.2,140.1,106.3887]
[1768779166382,4.654269,140.2,140.13,0.04516961]
[1768779166686,4.654269,140.17,140.06,10.1258089]
[1768779166890,4.654269,140.17,140.04,100.0038]
[1768779167679,4.654269,140.13,140.04,6.4288]
[1768779167880,0.04623913,140.12,140.03,10.1258089]
[1768779168389,4.654269,140.13,140.03,10.1258089]
[1768779168785,0.05269147,140.09,140.03,10.1258089]
[1768779169294,0.05269147,140.09,140.02,10.1258089]
[1768779169490,0.05269147,140.09,139.99,10.1258089]
[1768779169990,4.654269,140.1,139.99,10.1258089]
[1768779170288,4.654269,140.13,140.01,10.1258089]
[1768779170490,4.654269,140.13,140.02,10.1258089]
[1768779171288,4.654269,140.15,140.03,10.1258089]
[1768779171590,4.654269,140.15,140.04,10.1258089]
[1768779171791,4.654269,140.15,140.01,10.1258089]
[1768779172193,99.9145,140.17,140.02,10.1258089]
[1768779172688,6.4236,140.16,140.04,16.82460042]
[1768779174195,0.04565177,140.11,140.04,16.82460042]
[1768779175099,0.04565177,140.11,140.04,10.39570042]
[1768779175287,0.04565177,140.11,140.02,6.4297]
[1768779175894,4.654269,140.14,140.02,6.4297]
[1768779176196,0.04619145,140.08,140.02,6.4297]
[1768779176391,99.9309,140.15,140.03,10.39570042]
[1768779176694,104.578169,140.16,140.04,16.87642758]
[1768779177090,104.578169,140.16,140.04,16.82460042]
[1768779177288,4.654269,140.13,140.01,10.39570042]
[1768779177594,104.601969,140.13,140.01,10.39570042]
[1768779177897,104.601969,140.13,140.06,0.04958723]
[1768779178194,0.05244577,140.08,140.01,10.39570042]
[1768779178596,6.4264,140.1,140.01,10.39570042]
[1768779178795,6.4254,140.12,140.02,10.39570042]
[1768779178992,99.9324,140.15,140.01,6.43]
[1768779178993,4.66260187,140.14,140.01,6.43]
[1768779179192,104.60200187,140.14,139.99,15.05830229]
[1768779179591,0.05239217,140.09,140.0,16.82620042]
[1768779179791,0.05239217,140.09,140.02,10.39570042]
[1768779180190,4.66260187,140.16,140.02,10.39570042]
[1768779180391,6.4243,140.15,140.04,10.39570042]
[1768779181597,6.4243,140.15,140.04,16.82430042]
[1768779181901,18.4243,140.15,140.04,16.82430042]
[1768779182100,18.4243,140.15,140.08,0.05303849]
[1768779182805,18.4243,140.15,140.02,6.4297]
[1768779182806,4.7091973,140.13,140.02,6.4297]
[1768779183399,12.0,140.12,140.02,6.4297]
[1768779183700,18.4255,140.12,140.02,6.4297]
[1768779184300,0.05229856,140.08,140.02,6.4297]
[1768779184901,0.05229856,140.08,140.03,6.4292]
[1768779185103,0.05229856,140.08,140.02,110.41590042]
[1768779186216,12.0,140.15,140.04,10.39570042]
[1768779186717,12.0,140.15,140.04,10.44088298]
[1768779187111,12.0,140.15,140.04,10.39570042]
[1768779187511,12.0,140.15,140.05,10.39570042]
[1768779187712,12.0,140.15,140.05,110.38960042]
[1768779187909,12.0,140.15,140.05,10.39570042]
[1768779188109,0.04912746,140.11,140.05,6.4283]
[1768779188921,0.04912746,140.11,140.03,6.4294]
[1768779189116,0.04912746,140.11,140.02,10.39570042]
[1768779189317,4.66260187,140.14,140.02,10.39570042]
[1768779189918,0.04794352,140.08,140.03,6.429]
[1768779191419,6.425,140.13,140.04,10.39570042]
[1768779191817,104.60110187,140.14,140.01,16.82580042]
[1768779192020,4.66260187,140.11,140.01,10.39570042]
[1768779192513,4.66260187,140.11,139.99,6.4309]
[1768779192719,111.9699,140.1,139.98,10.39570042]
[1768779193022,99.9708,140.09,139.98,10.39570042]
[1768779193222,0.05038882,140.05,139.98,10.39570042]
[1768779193617,0.05038882,140.05,139.94,10.39570042]
[1768779194019,0.05038882,140.05,139.95,16.82850042]
[1768779194223,104.64330187,140.08,139.96,10.39570042]
[1768779194630,0.05453174,140.01,139.96,10.39570042]
[1768779195121,0.05453174,140.01,139.93,16.82940042]
[1768779195529,0.05453174,140.01,139.93,10.39570042]
[1768779196830,0.05453174,140.01,139.94,16.82900042]
[1768779197426,6.4291,140.04,139.94,16.82900042]
[1768779197823,0.04722908,139.99,139.94,16.82900042]
[1768779198026,0.04722908,139.99,139.94,10.39570042]
[1768779199722,6.4287,140.05,139.94,10.39570042]
[1768779199921,6.4287,140.05,139.95,10.45021583]
[1768779200325,6.4287,140.05,139.95,16.82850042]
[1768779200726,6.4287,140.05,139.95,10.39570042]
[1768779200928,6.4292,140.04,139.95,10.39570042]
[1768779201132,6.4292,140.04,139.99,0.05078173]
[1768779204324,6.4292,140.04,139.93,11.80025624]
[1768779204530,0.05183776,140.03,139.93,11.80025624]
[1768779204945,6.4296,140.03,139.93,18.23405624]
[1768779205634,0.05215141,139.99,139.93,18.23405624]
[1768779206127,0.05215141,139.99,139.94,11.80025624]
[1768779207625,0.05215141,139.99,139.91,18.23495624]
[1768779207937,0.05215141,139.99,139.92,11.80025624]
[1768779208330,0.05215141,139.99,139.89,11.80025624]
[1768779208533,104.68770187,140.02,139.89,11.80025624]
[1768779208737,4.66260187,140.02,139.89,11.80025624]
[1768779208935,4.66260187,140.02,139.93,0.04590076]
[1768779209538,4.66260187,140.02,139.89,11.80025624]
[1768779209845,6.4305,140.01,139.91,6.4347]
[1768779210440,6.431,140.0,139.95,0.04695772]
[1768779211639,100.0929,139.92,139.82,11.80025624]
[1768779211838,100.1136,139.89,139.79,11.80025624]
[1768779212031,104.77020187,139.9,139.79,11.80025624]
[1768779212228,4.66260187,139.9,139.79,11.80025624]
[1768779212428,4.66260187,139.96,139.83,11.80025624]
[1768779212638,6.4336,139.94,139.84,18.23815624]
[1768779213028,6.4336,139.94,139.85,11.80025624]
[1768779213337,6.4336,139.94,139.88,0.04649726]
[1768779213639,11.09620187,139.94,139.88,0.04649726]
[1768779213833,6.4342,139.93,139.82,6.4388]
[1768779214246,6.4342,139.93,139.82,18.23905624]
[1768779214634,100.0881,139.93,139.82,11.80025624]
[1768779214837,104.74520187,139.94,139.82,11.80025624]
[1768779215142,0.05228841,139.89,139.82,11.80025624]
[1768779215741,4.66260187,139.97,139.85,11.80025624]
[1768779215941,100.0437,139.99,139.85,11.80025624]
[1768779216240,4.66260187,140.0,139.86,11.80025624]
[1768779216433,4.66260187,140.0,139.87,11.80025624]
[1768779216634,6.431,140.0,139.89,11.80025624]
[1768779216831,104.69820187,140.0,139.86,11.80025624]
[1768779217037,100.0443,139.99,139.86,11.80025624]
[1768779217434,100.0492,139.98,139.86,11.80025624]
[1768779217643,4.66260187,140.0,139.86,11.80025624]
[1768779217644,100.0369,140.0,139.86,11.80025624]
[1768779218148,100.0428,139.99,139.87,12.08001297]
[1768779219244,6.4314,139.99,139.92,0.04555936]
[1768779220140,104.69430187,140.01,139.92,0.04555936]
[1768779220141,100.0415,140.0,139.92,0.04555936]
[1768779220547,100.0415,140.0,139.88,12.08001297]
[1768779220746,6.432,139.98,139.88,18.51601297]
[1768779221049,0.04592398,139.95,139.93,0.04925508]
[1768779221654,6.4325,139.97,139.88,12.08001297]
[1768779221950,0.04979503,139.95,139.88,12.08001297]
[1768779223842,0.04979503,139.95,139.88,18.51611297]
[1768779224048,0.04979503,139.95,139.89,12.08001297]
[1768779226454,0.04979503,139.95,139.8,100.1754]
[1768779226455,100.12059503,139.95,139.83,12.08001297]
[1768779226648,0.04979503,139.95,139.83,12.08001297]
[1768779227046,6.4338,139.94,139.84,6.4379]
[1768779227247,6.4338,139.94,139.85,12.08001297]
[1768779227544,6.4338,139.94,139.88,0.0514165]
[1768779230145,12.0,139.96,139.88,12.13142947]
[1768779231051,0.04658013,139.93,139.88,12.13142947]
[1768779231449,6.4323,139.97,139.88,12.13142947]